fUST/lending_fUST_20250619
["ID","MTS","AMOUNT","RATE_DAILY","PERIOD"]
[366456052,1750263051507,-440.0,0.00022191,6]
[366456053,1750263051516,-440.0,0.00022191,6]
[366456054,1750263051525,-460.0,0.00022191,6]
[366456055,1750263051535,-400.0,0.00022191,6]
[366456056,1750263051544,-460.0,0.00022191,6]
[366456057,1750263051553,-369.6864648,0.00022191,6]
[366456058,1750263051563,-460.0,0.00022191,6]
[366456059,1750263051573,-460.0,0.00022191,6]
[366456060,1750263051583,-460.0,0.00022191,6]
[366456061,1750263051592,-460.0,0.00022191,6]
[366456062,1750263051602,-460.0,0.00022191,6]
[366456063,1750263051612,-460.0,0.00022191,6]
[366456064,1750263051621,-460.0,0.00022191,6]
[366456065,1750263051633,-460.0,0.00022191,6]
[366456066,1750263051642,-460.0,0.00022191,2]
[366456067,1750263051652,-399.06282495,0.00022191,6]
[366456068,1750263051662,-460.0,0.00022191,6]
[366456069,1750263051671,-460.0,0.00022191,6]
[366456070,1750263051681,-460.0,0.00022191,6]
[366456071,1750263051690,-400.0,0.00022191,6]
[366456072,1750263051699,-460.0,0.00022191,6]
[366456073,1750263051708,-390.0,0.00022191,6]
[366456074,1750263051717,-400.0,0.00022191,6]
[366456075,1750263051726,-410.0,0.00022191,6]
[366456076,1750263051735,-390.0,0.00022191,6]
[366456077,1750263051745,-460.0,0.00022191,6]
[366456078,1750263051754,-420.0,0.00022191,6]
[366456079,1750263051764,-400.0,0.00022191,6]
[366456080,1750263051774,-420.0,0.00022191,6]
[366456081,1750263051783,-440.0,0.00022191,6]
[366456082,1750263051793,-410.0,0.00022191,6]
[366456083,1750263051802,-460.0,0.00022191,6]
[366456084,1750263051812,-407.69951743,0.00022191,6]
[366456085,1750263051822,-460.0,0.00022191,6]
[366456086,1750263051831,-460.0,0.00022191,6]
[366456087,1750263051840,-344.16638328,0.00022191,6]
[366456088,1750263051850,-380.0,0.00022191,6]
[366456089,1750263051860,-410.0,0.00022191,6]
[366456090,1750263051870,-460.0,0.00022191,6]
[366456091,1750263051880,-532.05473386,0.00022191,6]
[366456092,1750263051891,-460.0,0.00022191,6]
[366456093,1750263051900,-460.0,0.00022191,6]
[366456094,1750263051910,-460.0,0.00022191,6]
[366456095,1750263051919,-555.11339585,0.00022191,6]
[366456096,1750263051928,-229.86814561,0.00022191,6]
[366456097,1750263051938,-460.0,0.00022191,6]
[366456098,1750263051947,-460.0,0.00022191,6]
[366456099,1750263051957,-460.0,0.00022191,6]
[366456100,1750263051966,-460.0,0.00022191,6]
[366456101,1750263051975,-460.0,0.00022191,6]
[366456102,1750263051984,-466.88159365,0.00022191,6]
[366456103,1750263051994,-460.0,0.00022191,6]
[366456104,1750263052002,-400.0,0.00022191,6]
[366456105,1750263052012,-440.0,0.00022191,6]
[366456106,1750263052022,-460.0,0.00022191,6]
[366456107,1750263052031,-400.0,0.00022191,6]
[366456108,1750263052041,-460.0,0.00022191,6]
[366456109,1750263052050,-460.0,0.00022191,6]
[366456110,1750263052059,-400.0,0.00022191,6]
[366456111,1750263052069,-460.0,0.00022191,6]
[366456112,1750263052079,-460.0,0.00022191,6]
[366456113,1750263052089,-440.0,0.00022191,6]
[366456114,1750263052098,-410.0,0.00022191,6]
[366456115,1750263052107,-430.0,0.00022191,6]
[366456116,1750263052116,-400.0,0.00022191,6]
[366456117,1750263052125,-420.0,0.00022191,6]
[366456118,1750263052135,-562.03175633,0.00022191,6]
[366456119,1750263052144,-373.81510061,0.00022191,6]
[366456120,1750263052153,-460.0,0.00022191,6]
[366456121,1750263052163,-420.0,0.00022191,6]
[366456122,1750263052172,-430.0,0.00022191,6]
[366456123,1750263052182,-460.0,0.00022191,6]
[366456124,1750263052192,-263.611982,0.00022191,6]
[366456125,1750263052202,-460.0,0.00022191,6]
[366456126,1750263052213,-296.09532386,0.00022191,6]
[366456127,1750263052222,-460.0,0.00022191,6]
[366456128,1750263052232,-400.0,0.00022191,6]
[366456129,1750263052241,-460.0,0.00022191,6]
[366456130,1750263052252,-460.0,0.00022191,6]
[366456131,1750263052262,-403.85118614,0.00022191,6]
[366456132,1750263052272,-460.0,0.00022191,6]
[366456133,1750263052281,-460.0,0.00022191,6]
[366456134,1750263052291,-460.0,0.00022191,6]
[366456135,1750263052300,-430.0,0.00022191,6]
[366456136,1750263052313,-460.0,0.00022191,6]
[366456137,1750263052321,-744.08,0.00022191,6]
[366456138,1750263052330,-370.0,0.00022191,6]
[366456139,1750263052340,-405.40676977,0.00022191,6]
[366456140,1750263052351,-460.0,0.00022191,6]
[366456141,1750263052360,-420.0,0.00022191,6]
[366456142,1750263052369,-460.0,0.00022191,6]
[366456143,1750263052380,-460.0,0.00022191,6]
[366456144,1750263052391,-500.0,0.00022191,6]
[366456145,1750263052401,-460.0,0.00022191,6]
[366456146,1750263052410,-230.0,0.00022191,6]
[366456147,1750263052419,-621.32,0.00022191,6]
[366456148,1750263052429,-460.0,0.00022191,6]
[366456149,1750263052439,-420.0,0.00022191,6]
[366456150,1750263052449,-460.0,0.00022191,6]
[366456151,1750263052459,-460.0,0.00022191,6]
[366456152,1750263052468,-460.0,0.00022191,6]
[366456153,1750263052479,-527.28,0.00022191,6]
[366456154,1750263052488,-430.0,0.00022191,6]
[366456155,1750263052497,-410.0,0.00022191,6]
[366456156,1750263052507,-460.0,0.00022191,6]
[366456157,1750263052516,-460.0,0.00022191,6]
[366456158,1750263052526,-400.0,0.00022191,6]
[366456159,1750263052535,-323.20165156,0.00022191,6]
[366456160,1750263052544,-460.0,0.00022191,6]
[366456161,1750263052554,-460.0,0.00022191,6]
[366456162,1750263052564,-400.0,0.00022191,6]
[366456163,1750263052574,-460.0,0.00022191,6]
[366456164,1750263052584,-460.0,0.00022191,6]
[366456165,1750263052593,-390.0,0.00022191,6]
[366456166,1750263052602,-431.10680584,0.00022191,6]
[366456167,1750263052612,-460.0,0.00022191,6]
[366456168,1750263052621,-410.0,0.00022191,6]
[366456169,1750263052631,-420.0,0.00022191,6]
[366456170,1750263052641,-400.0,0.00022191,6]
[366456171,1750263052651,-460.0,0.00022191,6]
[366456172,1750263052660,-460.0,0.00022191,6]
[366456173,1750263052669,-403.38508017,0.00022191,6]
[366456174,1750263052679,-460.0,0.00022191,6]
[366456175,1750263052688,-400.0,0.00022191,6]
[366456176,1750263052698,-460.0,0.00022191,6]
[366456177,1750263052707,-420.0,0.00022191,6]
[366456178,1750263052717,-460.0,0.00022191,6]
[366456179,1750263052726,-460.0,0.00022191,6]
[366456180,1750263052736,-420.0,0.00022191,6]
[366456181,1750263052745,-410.0,0.00022191,6]
[366456182,1750263052754,-396.63972116,0.00022191,6]
[366456183,1750263052763,-420.0,0.00022191,6]
[366456184,1750263052773,-410.0,0.00022191,6]
[366456185,1750263052782,-505.37067928,0.00022191,6]
[366456186,1750263052792,-410.0,0.00022191,6]
[366456187,1750263052802,-400.0,0.00022191,6]
[366456188,1750263052812,-460.0,0.00022191,6]
[366456189,1750263052822,-564.29351477,0.00022191,6]
[366456190,1750263052832,-460.0,0.00022191,6]
[366456191,1750263052840,-460.0,0.00022191,6]
[366456192,1750263052850,-400.0,0.00022191,6]
[366456193,1750263052859,-460.0,0.00022191,6]
[366456194,1750263052869,-460.0,0.00022191,6]
[366456195,1750263052878,-460.0,0.00022191,6]
[366456196,1750263052887,-460.0,0.00022191,6]
[366456197,1750263052897,-410.0,0.00022191,6]
[366456198,1750263052907,-735.71,0.00022191,6]
[366456199,1750263052917,-410.0,0.00022191,6]
[366456200,1750263052927,-536.58005501,0.00022191,6]
[366456201,1750263052938,-430.0,0.00022191,6]
[366456202,1750263052947,-460.0,0.00022191,6]
[366456203,1750263052956,-401.34582552,0.00022191,6]
[366456204,1750263052966,-460.0,0.00022191,6]
[366456205,1750263052975,-460.0,0.00022191,6]
[366456206,1750263052984,-460.0,0.00022191,6]
[366456207,1750263052994,-460.0,0.00022191,6]
[366456208,1750263053003,-460.0,0.00022191,6]
[366456209,1750263053012,-460.0,0.00022191,6]
[366456210,1750263053021,-460.0,0.00022191,6]
[366456211,1750263053031,-460.0,0.00022191,6]
[366456212,1750263053041,-400.0,0.00022191,6]
[366456213,1750263053050,-410.0,0.00022191,6]
[366456214,1750263053059,-460.0,0.00022191,6]
[366456215,1750263053068,-489.88336343,0.00022191,6]
[366456216,1750263053077,-460.0,0.00022191,6]
[366456217,1750263053087,-460.0,0.00022191,6]
[366456218,1750263053097,-461.43523632,0.00022191,6]
[366456219,1750263053106,-460.0,0.00022191,6]
[366456220,1750263053116,-437.00000006,0.00022191,6]
[366456221,1750263053125,-460.0,0.00022191,6]
[366456222,1750263053135,-460.0,0.00022191,6]
[366456223,1750263053144,-460.0,0.00022191,6]
[366456224,1750263053154,-460.0,0.00022191,6]
[366456225,1750263053163,-460.0,0.00022191,6]
[366456226,1750263053174,-460.0,0.00022191,6]
[366456227,1750263053184,-460.0,0.00022191,6]
[366456228,1750263053322,-460.0,0.00022191,6]
[366456229,1750263053332,-410.0,0.00022191,6]
[366456230,1750263053343,-353.43715074,0.00022191,6]
[366456231,1750263053353,-460.0,0.00022191,6]
[366456232,1750263053363,-460.0,0.00022191,6]
[366456233,1750263053373,-460.0,0.00022191,6]
[366456234,1750263053384,-430.0,0.00022191,6]
[366456235,1750263053394,-460.0,0.00022191,6]
[366456236,1750263053404,-460.0,0.00022191,6]
[366456237,1750263053414,-400.0,0.00022191,6]
[366456238,1750263053423,-410.0,0.00022191,6]
[366456239,1750263053433,-572.02972206,0.00022191,6]
[366456240,1750263053442,-460.0,0.00022191,6]
[366456241,1750263053452,-430.0,0.00022191,6]
[366456242,1750263053462,-460.0,0.00022191,6]
[366456243,1750263053472,-460.0,0.00022191,6]
[366456244,1750263053481,-460.0,0.00022191,6]
[366456245,1750263053491,-1023.56,0.00022191,6]
[366456246,1750263053500,-460.0,0.00022191,6]
[366456247,1750263053510,-460.0,0.00022191,6]
[366456248,1750263053519,-460.0,0.00022191,6]
[366456249,1750263053529,-460.0,0.00022191,6]
[366456250,1750263053538,-413.93633004,0.00022191,6]
[366456251,1750263053548,-340.0,0.00022191,6]
[366456252,1750263053558,-460.0,0.00022191,6]
[366456253,1750263053568,-460.0,0.00022191,6]
[366456254,1750263053578,-523.02434713,0.00022191,6]
[366456255,1750263053587,-487.84,0.00022191,6]
[366456256,1750263053596,-460.0,0.00022191,6]
[366456257,1750263053606,-460.0,0.00022191,6]
[366456258,1750263053615,-666.78,0.00022191,6]
[366456259,1750263053625,-460.0,0.00022191,6]
[366456260,1750263053635,-338.4064164,0.00022191,6]
[366456261,1750263053644,-460.0,0.00022191,6]
[366456262,1750263053654,-373.33719584,0.00022191,6]
[366456263,1750263053663,-460.0,0.00022191,6]
[366456264,1750263053672,-460.0,0.00022191,6]
[366456265,1750263053682,-460.0,0.00022191,6]
[366456266,1750263053691,-460.0,0.00022191,6]
[366456267,1750263053701,-460.0,0.00022191,6]
[366456268,1750263053710,-495.96503829,0.00022191,6]
[366456269,1750263053720,-460.0,0.00022191,6]
[366456270,1750263053729,-460.0,0.00022191,6]
[366456271,1750263053738,-460.0,0.00022191,6]
[366456272,1750263053747,-460.0,0.00022191,6]
[366456273,1750263053757,-1170.02,0.00022191,6]
[366456274,1750263053766,-791.85,0.00022191,6]
[366456275,1750263053775,-370.44890749,0.00022191,6]
[366456276,1750263053785,-460.0,0.00022191,6]
[366456277,1750263053794,-308.52438394,0.00022191,6]
[366456278,1750263053803,-568.65,0.00022191,6]
[366456279,1750263053812,-198.35322482,0.00022191,6]
[366456280,1750263053822,-460.0,0.00022191,6]
[366456281,1750263053831,-460.0,0.00022191,6]
[366456282,1750263053841,-460.0,0.00022191,6]
[366456283,1750263053851,-460.0,0.00022191,6]
[366456284,1750263053860,-460.0,0.00022191,6]
[366456285,1750263053870,-460.0,0.00022191,6]
[366456286,1750263053879,-460.0,0.00022191,6]
[366456287,1750263053888,-460.0,0.00022191,6]
[366456288,1750263053898,-460.0,0.00022191,6]
[366456289,1750263053908,-460.0,0.00022191,6]
[366456290,1750263053917,-460.0,0.00022191,6]
[366456291,1750263053926,-294.47149506,0.00022191,6]
[366456292,1750263053935,-159.3726904,0.00022191,6]
[366456293,1750263053945,-460.0,0.00022191,6]
[366456294,1750263053955,-474.87,0.00022191,6]
[366456295,1750263053964,-518.56,0.00022191,6]
[366456296,1750263053974,-460.0,0.00022191,6]
[366456297,1750263053983,-671.47,0.00022191,6]
[366456298,1750263053992,-4246.95,0.00022191,6]
[366456299,1750263054002,-460.0,0.00022191,6]
[366456300,1750263054011,-460.0,0.00022191,6]
[366456301,1750263054021,-460.0,0.00022191,6]
[366456302,1750263054031,-370.0,0.00022191,6]
[366456303,1750263054041,-460.0,0.00022191,6]
[366456304,1750263054050,-460.0,0.00022191,6]
[366456305,1750263054059,-460.0,0.00022191,6]
[366456306,1750263054069,-460.0,0.00022191,6]
[366456307,1750263054078,-460.0,0.00022191,6]
[366456308,1750263054088,-460.0,0.00022191,6]
[366456309,1750263054098,-460.0,0.00022191,6]
[366456310,1750263054108,-460.0,0.00022191,6]
[366456311,1750263054118,-460.0,0.00022191,6]
[366456312,1750263054127,-460.0,0.00022191,6]
[366456313,1750263054137,-460.0,0.00022191,6]
[366456314,1750263054147,-350.43534274,0.00022191,6]
[366456315,1750263054156,-3897.04,0.00022191,6]
[366456316,1750263054166,-1762.73,0.00022191,6]
[366456317,1750263054175,-741.78,0.00022191,6]
[366456318,1750263054185,-430.0,0.00022191,6]
[366456319,1750263054195,-460.0,0.00022191,6]
[366456320,1750263054204,-2527.95,0.00022191,6]
[366456321,1750263054214,-460.0,0.00022191,6]
[366456322,1750263054224,-468.54244994,0.00022191,6]
[366456323,1750263054234,-344.54871383,0.00022191,6]
[366456324,1750263054243,-500.0,0.00022191,6]
[366456325,1750263054252,-460.0,0.00022191,6]
[366456326,1750263054262,-460.0,0.00022191,6]
[366456327,1750263054274,-3589.72,0.00022191,6]
[366456328,1750263054283,-1023.06,0.00022191,6]
[366456329,1750263054292,-460.0,0.00022191,6]
[366456330,1750263054302,-460.0,0.00022191,6]
[366456331,1750263054315,-337.97929873,0.00022191,6]
[366456332,1750263054324,-460.0,0.00022191,6]
[366456333,1750263054333,-460.0,0.00022191,6]
[366456334,1750263054343,-460.0,0.00022191,6]
[366456335,1750263054353,-662.53,0.00022191,6]
[366456336,1750263054362,-460.0,0.00022191,6]
[366456337,1750263054371,-265.0319789,0.00022191,6]
[366456338,1750263054381,-780.04,0.00022191,6]
[366456339,1750263054391,-343.17434514,0.00022191,6]
[366456340,1750263054400,-460.0,0.00022191,6]
[366456341,1750263054410,-460.0,0.00022191,6]
[366456342,1750263054419,-460.0,0.00022191,6]
[366456343,1750263054429,-212.64420861,0.00022191,6]
[366456344,1750263054438,-460.0,0.00022191,6]
[366456345,1750263054448,-460.0,0.00022191,6]
[366456346,1750263054457,-618.72,0.00022191,6]
[366456347,1750263054467,-460.0,0.00022191,6]
[366456348,1750263054477,-460.0,0.00022191,6]
[366456349,1750263054487,-460.0,0.00022191,6]
[366456350,1750263054497,-4198.1,0.00022191,6]
[366456351,1750263054506,-684.86,0.00022191,6]
[366456352,1750263054515,-460.0,0.00022191,6]
[366456353,1750263054525,-460.0,0.00022191,6]
[366456354,1750263054535,-460.0,0.00022191,6]
[366456355,1750263054544,-1596.71,0.00022191,6]
[366456356,1750263054554,-546.05,0.00022191,6]
[366456357,1750263054563,-460.0,0.00022191,6]
[366456358,1750263054573,-347.09140587,0.00022191,6]
[366456359,1750263054582,-649.37,0.00022191,6]
[366456360,1750263054591,-477.36,0.00022191,6]
[366456361,1750263054601,-400.0,0.00022191,6]
[366456362,1750263054610,-460.0,0.00022191,6]
[366456363,1750263054619,-420.0,0.00022191,6]
[366456364,1750263054629,-460.0,0.00022191,6]
[366456365,1750263054639,-1896.77,0.00022191,6]
[366456366,1750263054648,-606.94,0.00022191,6]
[366456367,1750263054657,-410.0,0.00022191,6]
[366456368,1750263054667,-460.0,0.00022191,6]
[366456369,1750263054677,-442.94799995,0.00022191,6]
[366456370,1750263054686,-460.0,0.00022191,6]
[366456371,1750263054696,-975.69,0.00022191,6]
[366456372,1750263054706,-400.0,0.00022191,6]
[366456373,1750263054716,-540.0,0.00022191,6]
[366456374,1750263054725,-420.0,0.00022191,6]
[366456375,1750263054735,-460.0,0.00022191,6]
[366456376,1750263054746,-2289.57,0.00022191,6]
[366456377,1750263054756,-460.0,0.00022191,6]
[366456378,1750263054765,-420.0,0.00022191,6]
[366456379,1750263054776,-321.59700395,0.00022191,6]
[366456380,1750263054785,-607.85,0.00022191,6]
[366456381,1750263054795,-403.77964643,0.00022191,6]
[366456382,1750263054805,-400.0,0.00022191,6]
[366456383,1750263054815,-1286.04,0.00022191,6]
[366456384,1750263054824,-460.0,0.00022191,6]
[366456385,1750263054835,-814.77,0.00022191,6]
[366456386,1750263054844,-404.74442728,0.00022191,6]
[366456387,1750263054854,-1284.44,0.00022191,6]
[366456388,1750263054863,-460.0,0.00022191,6]
[366456389,1750263054872,-460.0,0.00022191,6]
[366456390,1750263054883,-460.0,0.00022191,6]
[366456391,1750263054892,-460.0,0.00022191,6]
[366456392,1750263054902,-373.03213656,0.00022191,6]
[366456393,1750263054912,-460.0,0.00022191,6]
[366456394,1750263054922,-460.0,0.00022191,6]
[366456395,1750263054932,-460.0,0.00022191,6]
[366456396,1750263054942,-460.0,0.00022191,6]
[366456397,1750263054951,-460.0,0.00022191,6]
[366456398,1750263054961,-460.0,0.00022191,6]
[366456399,1750263054971,-460.0,0.00022191,6]
[366456400,1750263054981,-460.0,0.00022191,6]
[366456401,1750263054991,-384.81838807,0.00022191,6]
[366456402,1750263055001,-460.0,0.00022191,6]
[366456403,1750263055010,-400.0,0.00022191,6]
[366456404,1750263055019,-400.0,0.00022191,6]
[366456405,1750263055029,-400.0,0.00022191,6]
[366456406,1750263055038,-460.0,0.00022191,6]
[366456407,1750263055048,-279.86779242,0.00022191,6]
[366456408,1750263055058,-392.23285929,0.00022191,6]
[366456409,1750263055067,-460.0,0.00022191,6]
[366456410,1750263055077,-320.0,0.00022191,6]
[366456411,1750263055086,-325.55296295,0.00022191,6]
[366456412,1750263055095,-460.0,0.00022191,6]
[366456413,1750263055105,-460.0,0.00022191,6]
[366456414,1750263055114,-417.93633776,0.00022191,6]
[366456415,1750263055123,-460.0,0.00022191,6]
[366456416,1750263055132,-460.0,0.00022191,6]
[366456417,1750263055141,-460.0,0.00022191,6]
[366456418,1750263055151,-577.06,0.00022191,6]
[366456419,1750263055160,-460.0,0.00022191,6]
[366456420,1750263055170,-460.0,0.00022191,6]
[366456421,1750263055180,-460.0,0.00022191,6]
[366456422,1750263055189,-460.0,0.00022191,6]
[366456423,1750263055199,-761.19,0.00022191,6]
[366456424,1750263055208,-460.0,0.00022191,6]
[366456425,1750263055217,-460.0,0.00022191,6]
[366456426,1750263055227,-460.0,0.00022191,6]
[366456427,1750263055237,-641.22,0.00022191,6]
[366456428,1750263055247,-460.0,0.00022191,6]
[366456429,1750263055257,-460.0,0.00022191,6]
[366456430,1750263055267,-460.0,0.00022191,6]
[366456431,1750263055276,-460.0,0.00022191,6]
[366456432,1750263055286,-419.29303697,0.00022191,6]
[366456433,1750263055296,-460.0,0.00022191,6]
[366456434,1750263055307,-460.0,0.00022191,6]
[366456435,1750263055317,-460.0,0.00022191,6]
[366456436,1750263055327,-460.0,0.00022191,6]
[366456437,1750263055337,-460.0,0.00022191,6]
[366456438,1750263055347,-460.0,0.00022191,6]
[366456439,1750263055358,-1070.37,0.00022191,6]
[366456440,1750263055368,-460.0,0.00022191,6]
[366456441,1750263055378,-460.0,0.00022191,6]
[366456442,1750263055391,-460.0,0.00022191,6]
[366456443,1750263055402,-174.32312176,0.00022191,6]
[366456444,1750263055412,-460.0,0.00022191,6]
[366456445,1750263055422,-460.0,0.00022191,6]
[366456446,1750263055432,-460.0,0.00022191,6]
[366456447,1750263055442,-460.0,0.00022191,6]
[366456448,1750263055451,-1741.04,0.00022191,6]
[366456449,1750263055460,-460.0,0.00022191,6]
[366456450,1750263055470,-245.85974949,0.00022191,6]
[366456451,1750263055479,-460.0,0.00022191,6]
[366456452,1750263055489,-460.0,0.00022191,6]
[366456453,1750263055499,-460.0,0.00022191,6]
[366456454,1750263055509,-460.0,0.00022191,6]
[366456455,1750263055518,-391.16341734,0.00022191,6]
[366456456,1750263055527,-390.0,0.00022191,6]
[366456457,1750263055537,-400.0,0.00022191,6]
[366456458,1750263055547,-9058.0,0.00022191,6]
[366456459,1750263055556,-460.0,0.00022191,6]
[366456460,1750263055567,-236.11222489,0.00022191,6]
[366456461,1750263055577,-460.0,0.00022191,6]
[366456462,1750263055587,-460.0,0.00022191,6]
[366456463,1750263055596,-3081.13,0.00022191,6]
[366456464,1750263055605,-514.89,0.00022191,6]
[366456465,1750263055615,-460.0,0.00022191,6]
[366456466,1750263055624,-460.0,0.00022191,6]
[366456467,1750263055635,-460.0,0.00022191,6]
[366456468,1750263055645,-460.0,0.00022191,6]
[366456469,1750263055655,-460.0,0.00022191,6]
[366456470,1750263055665,-460.0,0.00022191,6]
[366456471,1750263055675,-718.17,0.00022191,6]
[366456472,1750263055684,-443.94866922,0.00022191,6]
[366456473,1750263055694,-460.0,0.00022191,6]
[366456474,1750263055703,-715.56,0.00022191,6]
[366456475,1750263055713,-460.0,0.00022191,6]
[366456476,1750263055723,-437.45305646,0.00022191,6]
[366456477,1750263055732,-462.03,0.00022191,6]
[366456478,1750263055742,-460.0,0.00022191,6]
[366456479,1750263055752,-346.26302682,0.00022191,6]
[366456480,1750263055762,-3693.66,0.00022191,6]
[366456481,1750263055772,-460.0,0.00022191,6]
[366456482,1750263055782,-420.30720909,0.00022191,6]
[366456483,1750263055792,-158.0,0.00022192,7]
[366456484,1750263055802,-781.94,0.00022195,6]
[366456485,1750263055812,-781.94,0.00022195,6]
[366456486,1750263055822,-781.94,0.00022195,6]
[366456487,1750263055832,-781.94,0.00022195,6]
[366456488,1750263055842,-781.95,0.00022195,6]
[366456489,1750263055851,-1529.47743691,0.0002227,2]
[366456490,1750263055861,-947.14694789,0.00022279,6]
[366456491,1750263055870,-6038.03,0.0002228,2]
[366456492,1750263055880,-207.4,0.00022405,2]
[366456493,1750263055890,-1688.0,0.00022405,2]
[366456494,1750263055900,-500.0,0.00022405,2]
[366456495,1750263055909,-500.0,0.00022405,2]
[366456496,1750263055919,-500.0,0.00022405,2]
[366456497,1750263055928,-5000.0,0.00022405,2]
[366456498,1750263056091,-500.0,0.00022405,2]
[366456499,1750263056117,-500.0,0.00022405,2]
[366456500,1750263056127,-500.0,0.00022405,2]
[366456501,1750263056137,-500.0,0.00022405,2]
[366456502,1750263056146,-500.0,0.00022405,2]
[366456503,1750263056156,-500.0,0.00022405,2]
[366456504,1750263056165,-500.0,0.00022405,2]
[366456505,1750263056175,-500.0,0.00022405,2]
[366456506,1750263056185,-500.0,0.00022405,2]
[366456507,1750263056194,-500.0,0.00022405,2]
[366456508,1750263056204,-500.0,0.00022405,2]
[366456509,1750263056213,-500.0,0.00022405,2]
[366456510,1750263056222,-500.0,0.00022405,2]
[366456511,1750263056232,-500.0,0.00022405,2]
[366456512,1750263056241,-500.0,0.00022405,2]
[366456513,1750263056251,-500.0,0.00022405,2]
[366456514,1750263056260,-500.0,0.00022405,2]
[366456515,1750263056270,-500.0,0.00022405,2]
[366456516,1750263056279,-500.0,0.00022405,2]
[366456517,1750263056288,-500.0,0.00022405,2]
[366456518,1750263056298,-500.0,0.00022405,2]
[366456519,1750263056312,-500.0,0.00022405,2]
[366456520,1750263056322,-500.0,0.00022405,2]
[366456521,1750263056331,-500.0,0.00022405,2]
[366456522,1750263056342,-500.0,0.00022405,2]
[366456523,1750263056353,-500.0,0.00022405,2]
[366456524,1750263056363,-500.0,0.00022405,2]
[366456525,1750263056372,-25000.0,0.00022405,2]
[366456526,1750263056384,-23371.71174136,0.00022405,2]
[366456527,1750263056394,-292.0,0.00022405,2]
[366456528,1750263056404,-1529.47743691,0.00022421,2]
[366456529,1750263056414,-947.14694789,0.00022452,7]
[366456530,1750263056423,-1750.456,0.0002246,2]
[366456531,1750263056433,-500.0,0.00022464,3]
[366456532,1750263056443,-460.0,0.00022465,6]
[366456533,1750263056453,-460.0,0.00022465,6]
[366456534,1750263056462,-460.0,0.00022465,6]
[366456535,1750263056472,-460.0,0.00022465,6]
[366456536,1750263056482,-460.0,0.00022465,6]
[366456537,1750263056491,-460.0,0.00022465,6]
[366456538,1750263056500,-460.0,0.00022465,6]
[366456539,1750263056510,-460.0,0.00022465,6]
[366456540,1750263056519,-460.0,0.00022465,6]
[366456541,1750263056529,-460.0,0.00022465,6]
[366456542,1750263056539,-460.0,0.00022465,6]
[366456543,1750263056548,-460.0,0.00022465,6]
[366456544,1750263056558,-460.0,0.00022465,6]
[366456545,1750263056568,-437.47574977,0.00022465,6]
[366456546,1750263056577,-460.0,0.00022465,6]
[366456547,1750263056587,-410.0,0.00022465,6]
[366456548,1750263056597,-283.98719117,0.00022465,6]
[366456549,1750263056607,-420.0,0.00022465,6]
[366456550,1750263056616,-376.21264922,0.00022465,6]
[366456551,1750263056626,-460.0,0.00022465,6]